bitfinex/quotes_ETHUSD_20230117
["timestamp","ask_amount","ask_price","bid_price","bid_amount"]
[1673970151886,18.79915809,1569.8,1569.4,19.11498]
[1673970152077,3.11662407,1569.7,1569.3,0.01]
[1673970152249,3.11662407,1569.6,1569.2,7.1928]
[1673970152576,0.096,1569.7,1569.2,7.1928]
[1673970152790,19.18105809,1569.8,1569.2,19.93792]
[1673970152791,19.31885936,1569.8,1569.2,19.93792]
[1673970153003,18.79915809,1569.8,1569.3,5.11041607]
[1673970153225,18.79915809,1569.8,1569.4,19.11495]
[1673970153692,0.12975809,1569.8,1569.4,19.11495]
[1673970153855,0.03375809,1569.8,1569.4,19.11495]
[1673970154071,0.03375809,1569.8,1569.4,22.23157407]
[1673970154306,0.03375809,1569.8,1569.5,1.21406724]
[1673970154459,0.03375809,1569.8,1569.6,19.11312]
[1673970154663,0.03375809,1569.8,1569.6,20.54373961]
[1673970155336,0.03375809,1569.8,1569.6,17.42711554]
[1673970155504,0.03375809,1569.8,1569.5,0.066]
[1673970155824,0.03375809,1569.8,1569.5,6.37137]
[1673970156282,0.03375809,1569.8,1569.5,12.74282]
[1673970156496,0.03375809,1569.8,1569.5,6.37137]
[1673970156716,0.03375809,1569.8,1569.4,22.69201]
[1673970156880,0.03375809,1569.8,1569.4,22.62601]
[1673970157731,3.11662407,1569.7,1569.3,3.066]
[1673970157937,3.11662407,1569.6,1569.2,0.066]
[1673970158148,3.11662407,1569.5,1569.0,6.43928]
[1673970158362,3.42828648,1569.4,1569.0,0.002]
[1673970158609,3.11662407,1569.3,1568.9,6.37387]
[1673970159401,3.11662407,1569.3,1568.9,12.74776]
[1673970160252,3.11662407,1569.3,1568.8,0.066]
[1673970160253,3.59472407,1569.2,1568.8,0.066]
[1673970160617,3.47609648,1569.1,1568.6,0.066]
[1673970160782,3.11662407,1569.0,1568.5,6.37541]
[1673970160996,14.0,1568.7,1568.4,0.014]
[1673970161257,19.12533,1568.6,1568.4,0.014]
[1673970161570,27.16642534,1568.5,1567.7,6.38465]
[1673970161896,14.0,1568.0,1567.6,0.016]
[1673970162207,14.0,1568.0,1567.3,6.38622]
[1673970162208,3.11662407,1567.9,1567.3,6.38622]
[1673970162354,3.34662407,1567.8,1567.2,0.066]
[1673970162564,3.11662407,1567.7,1567.0,6.44725]
[1673970162776,3.11662407,1567.6,1566.9,6.65695795]
[1673970163105,3.47008775,1567.5,1566.9,6.59106795]
[1673970163316,3.47008775,1567.5,1566.9,0.20909795]
[1673970163317,3.11662407,1567.4,1566.9,0.20909795]
[1673970163532,3.11662407,1567.3,1566.9,0.20909795]
[1673970163781,0.04180127,1567.4,1566.9,0.20909795]
[1673970163994,3.11662407,1567.3,1566.9,0.20909795]
[1673970164303,3.11662407,1567.2,1566.9,0.20909795]
[1673970164465,0.5727,1567.3,1566.9,6.59097795]
[1673970164671,1.4786,1567.5,1566.9,12.97299795]
[1673970164925,1.0,1567.5,1567.1,19.14303]
[1673970165147,0.4786,1567.7,1567.1,19.14303]
[1673970165362,0.52040127,1567.7,1567.1,8.494713]
[1673970165517,3.11662407,1567.6,1567.1,8.494713]
[1673970165726,0.13780127,1567.7,1567.1,8.494713]
[1673970165955,3.11662407,1567.6,1567.1,8.494713]
[1673970166141,3.59522407,1567.6,1567.1,6.38101]
[1673970166348,3.15842534,1567.5,1567.0,6.44755]
[1673970166594,0.096,1567.6,1567.1,12.76234]
[1673970166809,28.7525,1567.9,1567.1,16.39908173]
[1673970167209,3.11662407,1567.8,1567.2,0.63674173]
[1673970167516,3.11662407,1567.8,1567.3,6.38015]
[1673970167517,3.15842534,1567.8,1567.3,6.38015]
[1673970168092,0.52030127,1567.8,1567.3,6.38015]
[1673970168262,0.096,1567.9,1567.3,12.76054]
[1673970168470,10.1326,1568.2,1567.3,12.76054]
[1673970168664,0.04180127,1567.9,1567.3,12.76054]
[1673970168875,0.04180127,1567.9,1567.4,1.276054]
[1673970169086,3.15842534,1567.9,1567.5,12.75876]
[1673970169616,3.15842534,1567.9,1567.4,1.342054]
[1673970169617,3.11662407,1567.8,1567.4,0.066]
[1673970169823,3.15461559,1567.7,1567.2,6.38074]
[1673970170034,3.11662407,1567.6,1567.3,6.38031]
[1673970170300,0.12080127,1567.7,1567.3,6.38031]
[1673970170446,0.12080127,1567.7,1567.2,6.44659]
[1673970170447,3.11662407,1567.6,1567.2,6.44659]
[1673970170660,3.11662407,1567.6,1567.2,6.38042]
[1673970170940,3.11662407,1567.6,1567.3,6.38039]
[1673970171468,0.096,1567.7,1567.3,12.76078]
[1673970171624,0.4785,1567.9,1567.3,12.76078]
[1673970171832,3.11662407,1567.8,1567.3,12.76078]
[1673970173261,0.096,1567.9,1567.3,12.76078]
[1673970173424,3.11662407,1567.8,1567.3,2.14374173]
[1673970173637,3.11662407,1567.7,1567.3,6.38015]
[1673970173841,3.11662407,1567.6,1567.3,6.38015]
[1673970174057,3.11662407,1567.5,1567.2,6.44642]
[1673970174298,3.11662407,1567.5,1567.2,6.38042]
[1673970174512,3.11662407,1567.5,1567.2,12.76122]
[1673970175355,0.096,1567.6,1567.2,12.76122]
[1673970175577,0.096,1567.8,1567.3,4.67962407]
[1673970175761,10.2286,1568.2,1567.4,29.10370648]
[1673970175931,10.2286,1568.2,1567.4,25.98708241]
[1673970176136,0.04180127,1568.1,1567.4,25.98708241]
[1673970176346,6.41895127,1568.1,1567.4,6.37978]
[1673970176579,3.11662407,1568.0,1567.4,12.75977]
[1673970176789,3.11662407,1567.9,1567.4,12.75977]
[1673970177280,0.096,1568.0,1567.4,12.75977]
[1673970177561,10.1326,1568.2,1567.6,25.51588]
[1673970177562,0.096,1568.2,1567.6,25.51588]
[1673970177772,0.096,1568.2,1567.8,25.51269]
[1673970177773,0.002,1568.2,1567.8,25.51269]
[1673970178004,18.04220127,1568.3,1567.8,25.51269]
[1673970178138,18.04220127,1568.3,1567.8,6.37816]
[1673970178139,21.15882534,1568.3,1567.8,6.37816]
[1673970178507,9.49391407,1568.1,1567.7,0.066]
[1673970178660,9.49391407,1568.1,1567.5,6.37926]
[1673970178661,3.15842534,1568.0,1567.5,6.37926]
[1673970178895,1.0,1567.8,1567.5,6.37926]
[1673970179104,3.11662407,1567.7,1567.4,6.44571]
[1673970179315,14.0,1567.5,1566.9,30.77909795]
[1673970179525,3.11662407,1567.4,1567.3,0.054]
[1673970179796,0.108,1567.2,1566.9,0.20909795]
[1673970180016,0.108,1567.2,1566.9,9.795e-05]
[1673970180161,0.52060127,1567.1,1566.9,9.795e-05]
[1673970180368,14.52060127,1567.1,1566.9,9.795e-05]
[1673970180618,3.65422534,1567.1,1566.9,9.795e-05]
[1673970180829,3.11662407,1567.0,1566.9,9.795e-05]
[1673970181215,0.4788,1567.0,1566.9,9.795e-05]
[1673970181779,3.11662407,1567.0,1566.9,9.795e-05]
[1673970182011,0.13780127,1567.1,1566.9,0.90609795]
[1673970182334,13.1308,1567.2,1567.0,6.38162]
[1673970182681,0.204,1567.2,1567.0,6.33162]
[1673970182885,12.9268,1567.8,1567.0,12.97662]
[1673970183095,0.096,1567.8,1567.1,0.63674173]
[1673970183361,0.156,1568.2,1567.3,19.14105]
[1673970183581,0.124,1568.2,1567.6,19.13703]
[1673970183730,0.04180127,1568.1,1567.6,12.75802]
[1673970183939,0.04180127,1568.1,1567.6,19.13719]
[1673970184201,12.6945,1568.4,1567.6,19.13719]
[1673970184410,0.04180127,1568.3,1567.6,19.13719]
[1673970184565,3.1938314,1568.3,1567.6,20.14051806]
[1673970185043,2.7154314,1568.3,1567.6,20.14051806]
[1673970185574,0.4784,1568.2,1567.6,19.13719]
[1673970185720,0.002,1568.2,1567.6,19.13719]
[1673970185932,0.096,1568.4,1567.6,19.13719]
[1673970186148,0.13190655,1568.6,1567.7,3.0]
[1673970186480,0.13190655,1568.6,1567.9,25.51068]
[1673970186481,0.03590655,1568.6,1567.9,25.51068]
[1673970186691,0.03590655,1568.6,1568.0,13.57839985]
[1673970186959,0.03590655,1568.6,1568.3,19.12872]
[1673970187147,0.03590655,1568.6,1568.3,18.17975779]
[1673970187363,0.03590655,1568.6,1568.3,11.80351779]
[1673970188824,0.03590655,1568.7,1568.5,21.68953]
[1673970189008,12.4659,1569.4,1568.6,8.289215]
[1673970189223,12.4659,1569.4,1568.7,11.204]
[1673970189224,0.099,1569.4,1568.7,11.204]
[1673970189480,0.099,1569.4,1568.9,25.49441]
[1673970189481,0.006,1569.4,1568.9,25.49441]
[1673970189795,13.04075809,1569.8,1569.0,3.0]
[1673970189965,13.51865809,1569.8,1569.2,19.11767]
[1673970190175,2.0565571,1569.8,1569.2,19.11767]
[1673970190403,0.51165809,1569.8,1569.2,19.11767]
[1673970190632,0.03375809,1569.8,1569.2,19.11767]
[1673970190786,0.07555936,1569.8,1569.2,19.11767]
[1673970191209,0.07555936,1569.8,1569.1,0.066]
[1673970191210,3.11662407,1569.6,1569.1,0.066]
[1673970191539,3.11662407,1569.6,1568.8,6.44024]
[1673970191540,3.30740979,1569.1,1568.8,6.44024]
[1673970191752,3.30740979,1569.1,1568.9,6.37382]
[1673970192679,3.30740979,1569.1,1568.8,6.44024]
[1673970192890,3.30740979,1569.1,1568.8,6.37424]
[1673970193489,6.76467484,1569.1,1568.7,0.066]
[1673970193622,3.11662407,1569.0,1568.7,0.064]
[1673970193829,4.12915077,1569.1,1568.5,6.44128]
[1673970193830,3.11662407,1568.9,1568.5,6.44128]
[1673970194050,3.11662407,1568.8,1568.4,6.43991]
[1673970194294,3.42828648,1568.7,1568.4,6.37591]
[1673970194504,3.34662407,1568.6,1568.3,0.066]
[1673970194835,3.11662407,1568.5,1568.3,0.03085]
[1673970195367,0.099,1568.6,1568.3,12.78344]
[1673970195585,0.021,1568.6,1568.3,12.75259]
[1673970195731,3.11662407,1568.5,1568.2,6.44272]
[1673970195942,3.42828648,1568.4,1568.1,0.066]
[1673970196149,3.11662407,1568.3,1567.8,6.38416]
[1673970196417,3.11662407,1568.2,1567.8,6.37816]
[1673970197015,0.5774,1568.3,1567.7,6.44475]
[1673970197016,3.11662407,1568.1,1567.7,6.44475]
[1673970197230,3.11662407,1568.0,1567.6,6.44493]
[1673970197411,3.42828648,1567.9,1567.5,0.066]
[1673970197627,3.11662407,1567.8,1567.4,6.37989]
[1673970197966,0.04180127,1567.8,1567.4,6.37989]
[1673970198295,0.4785,1568.0,1567.4,12.75988]
[1673970198601,3.59512407,1568.0,1567.4,12.75988]
[1673970198814,0.099,1568.1,1567.5,1.275988]
[1673970199025,13.25480655,1568.5,1567.7,25.51492]
[1673970199238,16.31542407,1568.5,1567.7,28.63154407]
[1673970199954,3.15842534,1568.4,1567.7,25.51492]
[1673970200157,3.11662407,1568.3,1567.7,19.13619]
[1673970200374,3.11662407,1568.3,1567.7,21.056409]
[1673970200834,3.15842534,1568.2,1567.7,19.13619]
[1673970200984,3.11662407,1568.1,1567.7,12.75746]
[1673970201196,3.11662407,1568.0,1567.7,6.37873]
[1673970201468,0.04180127,1568.2,1567.6,0.066]
[1673970201469,3.11662407,1567.9,1567.6,0.066]
[1673970201617,8.00112019,1567.6,1567.2,0.03]
[1673970201826,8.00112019,1567.6,1567.0,6.38156]
[1673970201827,3.95853736,1567.5,1567.4,0.016]
[1673970202046,4.95853736,1567.5,1567.4,0.016]
[1673970202245,5.43713736,1567.5,1567.4,0.016]
[1673970202456,3.69422407,1567.5,1567.4,0.016]
[1673970202719,3.11662407,1567.5,1567.2,6.44671]
[1673970202889,3.11962407,1567.5,1567.2,6.38071]
[1673970203250,23.49631407,1567.5,1567.1,0.066]
[1673970203446,23.49631407,1567.5,1567.1,0.064]
[1673970203447,3.63712534,1567.4,1567.1,0.064]
[1673970203652,3.4803366,1567.3,1566.9,9.795e-05]
[1673970203981,3.11662407,1567.2,1566.9,9.795e-05]
[1673970204151,1.0,1567.2,1566.9,12.76401795]
[1673970204501,3.11662407,1567.2,1566.9,6.38199795]
[1673970204723,3.11662407,1567.1,1566.9,9.795e-05]
[1673970205028,3.11662407,1567.0,1566.9,9.795e-05]
[1673970205624,0.099,1567.1,1566.9,9.795e-05]
[1673970205837,3.11662407,1567.0,1566.9,9.795e-05]
[1673970206190,0.099,1567.2,1566.9,6.38211795]
[1673970206344,0.4786,1567.5,1567.1,12.76242]
[1673970206565,3.11662407,1567.5,1567.1,12.76242]
[1673970207125,2.19955019,1567.6,1567.1,12.76242]
[1673970207472,3.11662407,1567.2,1567.0,0.066]
[1673970207674,3.11662407,1567.1,1567.0,0.016]
[1673970207992,3.42828648,1567.1,1566.9,9.795e-05]
[1673970208203,3.11662407,1567.0,1566.9,9.795e-05]
[1673970208349,3.11662407,1567.0,1566.6,6.44887]
[1673970208350,3.11662407,1567.0,1566.6,0.066]
[1673970208558,3.11662407,1566.8,1566.5,0.19119549]
[1673970208821,3.15842534,1566.8,1566.5,0.19119549]
[1673970209089,0.04180127,1566.8,1566.5,12.95849549]
[1673970209296,3.15842534,1566.8,1566.5,6.57484549]
[1673970209748,3.11662407,1566.7,1566.5,0.19119549]
[1673970209963,0.3576438,1566.8,1566.5,0.19119549]
[1673970209964,0.099,1566.8,1566.5,6.57484549]
[1673970210177,3.11662407,1566.7,1566.5,0.19119549]
[1673970210368,1.0,1566.5,1566.2,0.2580597]
[1673970210581,3.11662407,1566.4,1566.1,0.09725519]
[1673970210933,0.479,1566.4,1566.1,6.48253519]
[1673970211144,0.4789,1566.5,1566.3,6.38447]
[1673970211316,3.11662407,1566.5,1566.3,6.38447]
[1673970211508,3.11662407,1566.4,1566.2,0.066]
[1673970211715,3.11662407,1566.3,1566.1,0.09725519]
[1673970211928,3.11662407,1566.2,1566.1,0.09725519]
[1673970212176,1.0,1566.1,1566.0,0.20909795]
[1673970212400,24.98100407,1566.1,1566.0,9.795e-05]
[1673970212610,24.99600407,1566.1,1566.0,9.795e-05]
[1673970212849,35.80467069,1566.1,1566.0,9.795e-05]
[1673970212985,31.46528407,1566.1,1566.0,9.795e-05]
[1673970213194,33.08160473,1566.1,1566.0,9.795e-05]
[1673970213399,4.40572407,1566.1,1566.0,9.795e-05]
[1673970213609,3.90862407,1566.1,1566.0,9.795e-05]
[1673970213822,3.90862407,1566.1,1566.0,13.67747795]
[1673970213823,0.711,1566.1,1566.0,13.67747795]
[1673970214408,0.711,1566.1,1565.4,0.03]
[1673970214409,6.33011,1565.9,1565.4,0.03]
[1673970214718,6.645,1565.7,1565.4,19.16419]
[1673970214872,0.081,1565.7,1565.4,19.16419]
[1673970215082,0.099,1566.0,1565.5,2.513]
[1673970215330,0.711,1566.1,1565.6,25.79978]
[1673970215501,0.711,1566.1,1565.5,2.579]
[1673970215714,0.711,1566.1,1565.3,8.25241]
[1673970215969,0.711,1566.1,1565.5,6.3877]
[1673970216352,21.09936,1566.1,1565.4,0.064]
[1673970216684,14.0,1565.6,1565.2,30.51]
[1673970216862,21.86257,1565.6,1565.1,0.066]
[1673970217031,7.73376173,1565.5,1565.0,0.75269974]
[1673970217221,14.0,1565.1,1564.6,0.06]
[1673970217434,1.0,1565.0,1564.7,0.03092]
[1673970217652,0.4794,1565.0,1564.7,0.03092]
[1673970217865,15.44794,1565.0,1564.7,0.03092]
[1673970218114,14.0,1564.8,1564.7,0.03092]
[1673970218333,15.777,1564.8,1564.7,0.03092]
[1673970218643,23.29139286,1564.8,1564.4,0.12784357]
[1673970218790,28.39158,1564.6,1564.4,0.07784357]
[1673970219008,2.839158,1564.5,1564.4,0.07784357]
[1673970219210,0.077,1564.4,1563.6,0.06]
[1673970219490,1.854,1564.1,1563.3,6.3639074]
[1673970219639,1.854,1564.1,1563.4,6.39625]
[1673970219640,14.0,1564.0,1563.4,6.39625]
[1673970220008,14.099,1564.0,1563.3,0.096]
[1673970220328,14.0,1563.6,1563.2,1.1070371]
[1673970220542,14.093,1563.6,1563.2,1.1070371]
[1673970220708,14.0,1563.4,1563.2,1.1070371]
[1673970220898,14.0,1563.4,1562.9,0.053]
[1673970220899,8.0,1563.3,1562.1,6.40151]
[1673970221112,8.0,1563.3,1561.8,6.4104912]
[1673970221113,14.0,1562.2,1562.0,0.126]
[1673970221377,1.42646,1562.2,1562.0,0.066]
[1673970221712,1.32746,1562.2,1561.8,0.0078112]
[1673970221838,1.32746,1562.2,1561.8,6.71109232]
[1673970222048,1.32746,1562.2,1561.9,1.563]
[1673970222263,1.32746,1562.2,1562.0,12.80408]
[1673970222528,0.00046,1562.2,1562.0,6.40204]
[1673970222737,0.00046,1562.2,1562.0,6.4017]
[1673970223059,1.64327,1564.0,1562.1,36.0418]
[1673970223275,0.03,1564.0,1563.1,3.0]
[1673970223441,0.03,1564.0,1563.1,0.06]
[1673970223632,0.72587471,1564.2,1563.4,1.559]
[1673970223842,0.0112212,1564.3,1563.8,3.0]
[1673970224054,0.06,1564.5,1563.9,25.57638]
[1673970224055,0.03,1564.5,1563.9,25.57638]
[1673970224270,0.03,1564.5,1564.3,1.563]
[1673970224271,0.0008,1564.5,1564.3,1.563]
[1673970224653,20.38224573,1564.8,1564.4,24.23588001]
[1673970224826,20.38224573,1564.8,1564.4,5.05922001]
[1673970225041,0.099,1564.8,1564.4,5.57174201]
[1673970225216,3.31752671,1564.3,1564.1,0.06]
[1673970225433,3.31752671,1564.3,1563.9,0.066]
[1673970225750,14.0,1564.0,1563.6,0.066]
[1673970226086,0.099,1564.0,1563.2,7.39681]
[1673970226304,14.0,1564.1,1563.7,6.395]
[1673970226305,0.099,1564.1,1563.7,6.395]
[1673970226627,12.4529,1564.2,1563.7,6.395]
[1673970226628,0.099,1564.2,1563.7,12.79008]
[1673970226853,0.099,1564.2,1563.9,4.563]
[1673970226854,0.003,1564.2,1563.9,4.563]
[1673970226989,3.31752671,1564.3,1563.9,4.563]
[1673970226990,3.31752671,1564.3,1564.0,19.18158]
[1673970227200,0.099,1564.5,1564.0,18.23003845]
[1673970227450,1.0,1564.7,1564.1,1.82300384]
[1673970227670,1.0,1564.7,1564.2,19.17813]
[1673970227893,0.04180127,1564.7,1564.1,0.066]
[1673970228207,0.04180127,1564.7,1564.0,5.44231845]
[1673970228208,14.0,1564.3,1564.0,5.44231845]
[1673970228532,0.099,1564.3,1564.1,6.39333]
[1673970228683,0.5785,1564.7,1564.2,0.639333]
[1673970228888,14.099,1564.9,1564.3,19.17744]
[1673970229154,0.099,1564.9,1564.3,19.17744]
[1673970229468,1.0,1565.0,1564.5,20.72947]
[1673970229635,15.779,1565.7,1564.5,20.72947]
[1673970229636,0.06,1565.4,1564.7,19.17273]
[1673970229844,0.099,1565.6,1564.9,19.16955]
[1673970229845,0.02601967,1565.3,1564.9,19.16955]
[1673970230075,0.02601967,1565.3,1564.9,16.63289795]
[1673970230308,14.02601967,1565.3,1564.8,0.066]
[1673970230534,14.02601967,1565.3,1564.6,0.066]
[1673970230535,14.0,1565.2,1564.6,0.066]
[1673970230685,0.15626217,1564.7,1564.6,0.064]
[1673970230901,0.15626217,1564.7,1564.6,0.908]
[1673970231089,0.15626217,1564.7,1564.6,0.906]
[1673970231299,13.36681967,1565.3,1564.6,2.275128]
[1673970231512,13.36681967,1565.3,1564.6,5.275128]
[1673970231848,1.0,1565.2,1564.8,25.56224]
[1673970232060,1.0,1565.2,1565.0,12.77954]
[1673970232261,1.0,1565.2,1565.0,14.357494]
[1673970232519,0.02601967,1565.3,1565.0,14.357494]
[1673970232761,0.02601967,1565.3,1565.0,12.77954]
[1673970234158,0.02601967,1565.3,1565.2,12.7779]
[1673970234366,0.02601967,1565.3,1565.2,15.7779]
[1673970234787,2.2721,1566.1,1565.2,17.3409]
[1673970234997,0.4821,1566.1,1565.5,19.16271]
[1673970235208,1.0,1565.8,1565.5,17.69725437]
[1673970235783,0.099,1566.2,1565.6,3.0]
[1673970235965,0.096,1566.2,1565.7,19.15977]
[1673970236152,0.04180127,1566.2,1565.7,12.77318]
[1673970236903,0.678543,1566.2,1565.6,0.066]
[1673970237118,0.678543,1566.2,1565.6,6.38726]
[1673970237447,0.02884667,1566.0,1565.6,6.38726]
[1673970237658,0.02884667,1566.0,1565.6,2.16036759]
[1673970238053,0.02884667,1566.0,1565.6,5.16036759]
[1673970238273,0.02884667,1566.0,1565.6,3.0]
[1673970238730,0.02884667,1566.0,1565.6,6.69387]
[1673970239054,0.02884667,1566.0,1565.8,6.38651]
[1673970239397,0.02884667,1566.0,1565.7,3.066]
[1673970239514,0.02884667,1566.0,1565.7,3.0]
[1673970240048,0.02884667,1566.0,1565.7,9.38679]
[1673970240272,0.02884667,1566.0,1565.8,0.938679]
[1673970240502,0.02884667,1566.0,1565.9,12.7722]
[1673970240831,0.02884667,1566.0,1565.9,17.3352]
[1673970241407,0.6378,1566.9,1565.9,17.3352]
[1673970241616,0.4788,1567.0,1566.3,6.38442]
[1673970241923,0.4788,1567.0,1566.2,3.064]
[1673970241924,1.0,1566.8,1566.2,3.064]
[1673970242046,1.0,1566.8,1566.2,9.38484]
[1673970242264,2.4238,1567.1,1566.2,9.38484]
[1673970242491,0.02884667,1566.8,1566.2,10.38484]
[1673970242911,0.02884667,1566.8,1566.2,9.38484]
[1673970243155,0.07064794,1566.8,1566.2,3.0]
[1673970243301,7.08990967,1566.8,1566.1,0.066]
[1673970243509,6.86189,1566.7,1565.8,6.39232]
[1673970243719,0.5779,1566.7,1565.8,6.38632]
[1673970243943,0.4789,1566.7,1565.9,1.563]
[1673970244176,0.04180127,1566.6,1566.0,6.54196]
[1673970244727,1.157443,1566.6,1565.9,2.22623855]
[1673970245039,0.94060688,1566.6,1565.8,0.064]
[1673970245192,3.21068476,1566.5,1565.6,6.49789615]
[1673970245400,10.59464476,1566.5,1565.6,6.49789615]
[1673970245607,0.479,1566.4,1565.6,6.49789615]
[1673970245876,0.479,1566.4,1565.7,3.11662407]
[1673970246091,0.04180127,1566.3,1565.8,3.11662407]
[1673970246665,0.479,1566.4,1565.9,9.50251407]
[1673970246968,2.21490561,1566.6,1566.0,3.11662407]
[1673970246969,2.69380561,1566.6,1566.0,3.11662407]
[1673970247128,0.41990561,1566.6,1566.1,3.11662407]
[1673970247316,0.41990561,1566.6,1566.2,3.11662407]
[1673970247529,0.41990561,1566.6,1566.2,9.50113407]
[1673970247799,0.41990561,1566.6,1566.2,11.09514048]
[1673970248098,0.41990561,1566.6,1566.2,17.48002048]
[1673970248246,0.41990561,1566.6,1566.2,11.09514048]
[1673970248458,0.41990561,1566.6,1566.3,3.11662407]
[1673970248661,0.41990561,1566.6,1566.4,3.11662407]
[1673970248873,0.41990561,1566.6,1566.5,9.50027407]
[1673970249081,0.41990561,1566.6,1566.5,3.11662407]
[1673970249841,0.41990561,1566.6,1566.4,0.066]
[1673970250055,0.41990561,1566.6,1566.5,0.03088]
[1673970250283,1.32590561,1566.6,1566.5,0.03088]
[1673970250610,0.41990561,1566.6,1566.5,0.03088]
[1673970250820,1.32590561,1566.6,1566.5,0.03088]
[1673970251208,0.41990561,1566.6,1566.5,0.03088]
[1673970251877,0.41990561,1566.6,1566.5,16.78536044]
[1673970252093,0.41990561,1566.6,1566.5,18.46389648]
[1673970252242,0.41990561,1566.6,1566.5,12.08024648]
[1673970252659,0.41990561,1566.6,1566.5,4.79059648]
[1673970252867,0.41990561,1566.6,1566.5,20.55789648]
[1673970253346,0.41990561,1566.6,1566.5,27.20289648]
[1673970253494,0.41990561,1566.6,1566.5,20.55789648]
[1673970254204,0.41990561,1566.6,1566.5,14.17424648]
[1673970254382,0.41990561,1566.6,1566.5,6.11206044]
[1673970254632,0.41990561,1566.6,1566.5,0.03088]
[1673970254848,0.41990561,1566.6,1566.5,15.91480407]
[1673970255007,0.41990561,1566.6,1566.5,19.91480407]
[1673970255228,0.41990561,1566.6,1566.5,18.91480407]
[1673970255696,0.41990561,1566.6,1566.5,28.09625448]
[1673970255916,0.41990561,1566.6,1566.5,21.45125448]
[1673970256222,0.41990561,1566.6,1566.5,6.14950407]
[1673970256431,0.41990561,1566.6,1566.5,6.14750407]
[1673970256593,0.41990561,1566.6,1566.5,6.14950407]
[1673970256797,0.41990561,1566.6,1566.5,18.91480407]
[1673970257278,0.41990561,1566.6,1566.5,3.03088]
[1673970257484,3.28243017,1566.4,1566.1,14.33328]
[1673970257637,3.28243017,1566.4,1566.2,9.50133407]
[1673970257850,3.28243017,1566.4,1566.3,3.11662407]
[1673970258163,3.28243017,1566.4,1566.3,25.09356407]
[1673970258477,3.28243017,1566.4,1566.3,17.44856407]
[1673970258916,3.28243017,1566.4,1566.3,17.45056407]
[1673970259150,3.28243017,1566.4,1566.3,19.84049148]
[1673970259319,3.28243017,1566.4,1566.3,22.83849148]
[1673970259743,3.28243017,1566.4,1566.3,35.86996148]
[1673970260071,2.27043017,1566.4,1566.3,22.83849148]
[1673970260757,2.27043017,1566.4,1566.3,23.83849148]
[1673970260949,0.41990561,1566.6,1566.5,6.645]
[1673970261107,0.41990561,1566.6,1566.5,32.70407407]
[1673970261527,0.41990561,1566.6,1566.5,32.70607407]
[1673970262058,0.41990561,1566.6,1566.5,32.70407407]
[1673970262381,0.41990561,1566.6,1566.5,32.70607407]
[1673970262592,0.41990561,1566.6,1566.5,32.70407407]
[1673970262834,0.41990561,1566.6,1566.5,26.32042407]
[1673970263064,0.41990561,1566.6,1566.5,13.29177407]
[1673970263272,0.41990561,1566.6,1566.5,6.11662407]
[1673970264015,0.41990561,1566.6,1566.5,3.11662407]
[1673970264334,0.41990561,1566.6,1566.4,0.066]
[1673970264521,0.41990561,1566.6,1566.5,3.11662407]
[1673970264734,0.41990561,1566.6,1566.5,1.42717632]
[1673970264899,0.41990561,1566.6,1566.5,1.66989395]
[1673970265111,0.41990561,1566.6,1566.5,14.69854395]
[1673970265323,0.41990561,1566.6,1566.5,21.08219395]
[1673970265703,0.41990561,1566.6,1566.5,17.43719395]
[1673970266056,0.0132176,1567.1,1566.5,29.43933165]
[1673970266429,0.0132176,1567.1,1567.0,30.46148407]
[1673970266597,0.8852176,1567.1,1567.0,3.11662407]
[1673970267006,0.8852176,1567.1,1566.9,0.066]
[1673970267211,0.8852176,1567.1,1566.7,6.44871]
[1673970267422,0.8852176,1567.1,1566.7,3.11662407]
[1673970267423,15.50111536,1567.1,1566.7,3.11662407]
[1673970267630,15.60011536,1567.1,1566.6,0.066]
[1673970267860,15.60011536,1567.1,1566.1,8.529043]
[1673970268161,1.0,1567.0,1566.3,3.11662407]
[1673970268404,12.76335,1567.0,1566.4,3.11662407]
[1673970268618,0.4788,1566.9,1566.5,3.42828648]
[1673970268960,0.4788,1566.9,1566.6,3.11662407]
[1673970269124,0.1122176,1567.1,1566.7,6.11662407]
[1673970269314,0.0132176,1567.1,1566.8,9.49905407]
[1673970269524,0.0132176,1567.1,1566.9,3.11662407]
[1673970269738,0.0132176,1567.1,1567.0,6.42828648]
[1673970270401,0.0132176,1567.1,1566.9,0.066]
[1673970270581,0.0132176,1567.1,1566.9,3.11662407]
[1673970270935,0.0132176,1567.1,1567.0,9.49824407]
[1673970271268,0.0132176,1567.1,1567.0,25.52486407]
[1673970271434,0.0132176,1567.1,1567.0,29.83033795]
[1673970271648,0.0132176,1567.1,1567.0,33.61407374]
[1673970271649,0.0002176,1567.1,1567.0,33.61407374]
[1673970272006,0.03840013,1567.4,1567.2,6.645]
[1673970272232,0.00040013,1567.4,1567.3,33.46579407]
[1673970272816,0.04525583,1567.6,1567.4,1.0]
[1673970273082,5.83e-06,1567.6,1567.5,30.46336407]
[1673970273254,1.1070371,1568.0,1567.7,25.78107]
[1673970273483,1.1070371,1568.0,1567.9,4.67162407]
[1673970273704,1.1070371,1568.0,1567.9,3.11662407]
[1673970273917,1.1070371,1568.0,1567.9,6.0752868]
[1673970274119,1.1070371,1568.0,1567.9,12.4532368]
[1673970274349,1.1070371,1568.0,1567.9,15.26016048]
[1673970274574,1.1070371,1568.0,1567.9,26.84737609]
[1673970274575,1.0770371,1568.0,1567.9,26.84737609]
[1673970274723,0.04987214,1568.4,1568.3,6.645]
[1673970274930,0.04987214,1568.4,1568.3,9.76162407]
[1673970275141,0.04987214,1568.4,1568.3,16.13795407]
[1673970275355,0.04987214,1568.4,1568.3,5.53099248]
[1673970275594,0.04987214,1568.4,1568.3,3.11662407]
[1673970275922,0.04987214,1568.4,1568.3,12.49295407]
[1673970276101,0.04987214,1568.4,1568.3,19.13795407]
[1673970276660,0.04987214,1568.4,1568.3,25.51428407]
[1673970276868,0.04987214,1568.4,1568.3,26.51428407]
[1673970277170,0.04987214,1568.4,1568.3,3.0]
[1673970277316,0.04987214,1568.4,1568.3,3.11662407]
[1673970277680,0.04987214,1568.4,1568.3,19.13795407]